bitfinex-derivatives/quotes_ETHF0:USTF0_20230403
["timestamp","ask_amount","ask_price","bid_price","bid_amount"]
[1680532919788,3.2078,1799.1,1798.5,4.2078]
[1680532920082,3.2078,1799.1,1798.6,1.0]
[1680532920786,3.2078,1799.4,1798.6,1.0]
[1680532920991,3.2078,1799.4,1798.6,6.533]
[1680532921686,3.2078,1799.2,1798.7,8.7408]
[1680532921880,3.2078,1799.4,1798.8,1.0]
[1680532922080,3.2078,1799.2,1798.8,1.0]
[1680532922779,3.2078,1799.4,1798.8,1.0]
[1680532923292,3.2078,1799.2,1798.8,1.0]
[1680532924084,3.2078,1799.0,1798.5,8.7408]
[1680532924387,3.2078,1799.0,1798.5,3.2078]
[1680532925289,7.6558,1798.6,1798.3,2.25201352]
[1680532925581,7.6288,1798.4,1798.3,2.25201352]
[1680532926485,3.2078,1798.4,1798.3,2.25201352]
[1680532929096,0.20015467,1798.5,1798.3,2.25201352]
[1680532929287,7.06548901,1798.9,1798.3,2.25201352]
[1680532929288,3.2078,1798.6,1798.3,2.25201352]
[1680532929479,3.2078,1798.4,1798.3,2.25201352]
[1680532929681,3.38252663,1798.4,1798.3,2.25201352]
[1680532929995,1.0,1798.3,1797.5,0.58185075]
[1680532930185,3.2078,1797.8,1797.5,0.58185075]
[1680532930382,3.2078,1797.8,1797.4,0.58185075]
[1680532930583,3.2078,1797.8,1797.4,1.58185075]
[1680532931080,3.2078,1797.7,1797.4,1.58185075]
[1680532931319,1.0,1798.1,1797.4,1.58185075]
[1680532931320,3.2078,1797.9,1797.4,1.58185075]
[1680532932288,3.2078,1798.0,1797.4,1.58185075]
[1680532932489,3.2078,1797.8,1797.4,1.58185075]
[1680532932688,3.2078,1797.8,1797.5,1.0]
[1680532932885,3.2078,1797.9,1797.5,6.533]
[1680532933192,3.2078,1797.9,1797.5,7.11485075]
[1680532933410,3.2078,1797.9,1797.5,6.533]
[1680532933592,0.18476274,1797.8,1797.5,7.11485075]
[1680532933791,0.18476274,1797.8,1797.6,3.2078]
[1680532933994,3.2078,1798.2,1797.7,1.0]
[1680532934393,0.18476758,1798.1,1797.7,1.0]
[1680532934795,3.2078,1798.2,1797.7,1.0]
[1680532935993,3.2078,1798.0,1797.6,1.0]
[1680532936537,3.2078,1798.2,1797.6,1.0]
[1680532936893,3.2078,1798.2,1797.7,5.533]
[1680532937091,3.2078,1798.2,1797.8,5.448]
[1680532937485,3.2078,1798.2,1797.9,1.08511488]
[1680532937686,3.2078,1798.2,1797.9,0.08511488]
[1680532938083,3.2078,1798.2,1797.7,5.533]
[1680532938288,3.2078,1798.0,1797.6,1.0]
[1680532939195,3.2078,1797.8,1797.5,1.0]
[1680532939797,3.2078,1798.0,1797.5,1.58185075]
[1680532940296,3.2078,1797.8,1797.5,1.58185075]
[1680532940503,3.2078,1798.0,1797.5,1.0]
[1680532940723,3.2078,1798.0,1797.5,1.58185075]
[1680532940887,3.2078,1798.0,1797.5,7.11485075]
[1680532942801,0.10242208,1798.1,1797.7,4.444]
[1680532943003,3.2078,1798.0,1797.8,1.0]
[1680532943187,3.2078,1798.0,1797.5,6.89749741]
[1680532943188,0.10210619,1797.9,1797.5,6.89749741]
[1680532943398,3.2078,1797.8,1797.4,1.58185075]
[1680532943994,3.2078,1797.8,1797.4,7.11485075]
[1680532944503,3.2078,1797.8,1797.4,1.58185075]
[1680532945195,3.2078,1797.8,1797.4,7.11485075]
[1680532945701,0.10210619,1797.9,1797.4,7.98249741]
[1680532945940,0.10210619,1797.9,1797.7,5.533]
[1680532946093,3.2078,1798.2,1797.8,1.0]
[1680532946291,3.2078,1798.2,1797.8,1.0624152]
[1680532946594,3.2078,1798.4,1797.8,6.5954152]
[1680532946905,3.2078,1798.6,1798.0,5.533]
[1680532947095,3.2078,1798.6,1798.0,9.981]
[1680532947299,3.2078,1798.6,1798.1,1.0]
[1680532948291,3.2078,1798.4,1798.1,1.0]
[1680532948492,3.2078,1798.4,1798.2,0.06240505]
[1680532948691,3.2078,1798.4,1798.1,1.0]
[1680532948692,3.2078,1798.6,1798.1,1.0]
[1680532949995,3.2078,1798.4,1798.1,1.0]
[1680532950201,3.2078,1798.4,1798.0,5.533]
[1680532950398,3.2078,1798.4,1798.1,1.0]
[1680532953199,3.2078,1798.6,1798.1,6.533]
[1680532958103,3.75104645,1798.6,1798.1,6.533]
[1680532958603,3.75104645,1798.6,1797.9,4.78965075]
[1680532958808,3.2078,1798.4,1797.9,4.78965075]
[1680532959905,3.2078,1798.0,1797.8,0.58185075]
[1680532960212,3.2078,1798.2,1797.7,0.58185075]
[1680532960711,3.2078,1798.2,1797.7,2.44949741]
[1680532961019,3.2078,1798.0,1797.7,1.58185075]
[1680532961206,3.2078,1798.0,1797.7,0.58185075]
[1680532962605,3.2078,1798.0,1797.8,0.58185075]
[1680532963710,0.06735317,1797.9,1797.8,0.58185075]
[1680532964704,0.06735317,1797.9,1797.8,0.86764666]
[1680532965113,3.2078,1798.2,1797.8,1.86764666]
[1680532965313,3.2078,1798.2,1797.9,0.58116759]
[1680532965523,3.2078,1798.4,1798.0,0.58116759]
[1680532965710,3.2078,1798.4,1798.1,1.0]
[1680532965918,3.2078,1798.4,1798.1,1.58116759]
[1680532966812,3.2078,1798.4,1798.2,0.58116759]
[1680532969611,3.2078,1798.4,1798.3,0.58116759]
[1680532972017,5.4228,1798.4,1798.3,0.58116759]
[1680532972224,3.2078,1798.4,1798.2,0.58116759]
[1680532972521,1.0,1798.3,1798.1,0.58116759]
[1680532972723,3.2078,1798.2,1798.1,0.58116759]
[1680532978527,3.28905452,1798.2,1798.1,0.58116759]
[1680532979530,3.28905452,1798.2,1798.1,1.86764666]
[1680532979927,0.08125452,1798.2,1798.1,1.86764666]
[1680532980333,3.2078,1798.4,1798.1,1.86764666]
[1680532980536,3.2078,1798.4,1798.2,0.58222859]
[1680532981740,0.86061379,1798.3,1798.2,0.58222859]
[1680532982037,3.2078,1798.4,1798.2,0.58222859]
[1680532982842,3.78329942,1798.4,1798.1,0.58222859]
[1680532983139,3.2078,1798.2,1798.1,0.58222859]
[1680532983640,3.2078,1798.2,1798.1,3.65287525]
[1680532984364,1.13956581,1798.5,1798.2,3.207]
[1680532984533,3.2078,1798.6,1798.4,0.58212122]
[1680532984739,3.2078,1798.6,1798.4,1.58212122]
[1680532985232,3.2078,1798.6,1798.4,0.58212122]
[1680532985836,3.78329942,1798.6,1798.4,0.58212122]
[1680532986037,3.2078,1798.6,1798.4,0.58212122]
[1680532987743,3.2078,1798.6,1798.4,1.58212122]
[1680532988244,3.2078,1798.6,1798.4,0.58212122]
[1680532988432,3.2078,1798.6,1798.4,1.58212122]
[1680532988637,3.2078,1798.6,1798.4,2.45530305]
[1680532988836,0.57549942,1798.7,1798.4,2.45530305]
[1680532989039,0.57549942,1798.7,1798.4,1.58212122]
[1680532989243,0.57549942,1798.7,1798.4,2.45530305]
[1680532990248,0.57549942,1798.7,1798.5,0.58212122]
[1680532993241,4.99991072,1798.9,1798.5,0.58212122]
[1680532993242,0.576369,1798.9,1798.6,3.09418183]
[1680532993438,4.64478279,1799.0,1798.7,1.58218198]
[1680532993636,3.784169,1799.0,1798.8,0.58218198]
[1680532993837,2.00467147,1799.1,1798.8,0.58218198]
[1680532994140,1.14405768,1799.1,1798.8,4.66316381]
[1680532994334,1.14405768,1799.1,1798.9,1.58218198]
[1680532994546,0.56768868,1799.1,1798.9,3.78518198]
[1680532994734,1.43698279,1799.2,1798.9,3.203]
[1680532994735,0.576369,1799.2,1798.9,3.203]
[1680532995046,0.576369,1799.2,1799.0,1.0]
[1680532995251,1.43698279,1799.3,1799.0,1.0]
[1680532995439,0.576369,1799.2,1799.0,1.0]
[1680532995641,1.43698279,1799.3,1799.0,1.0]
[1680532995852,0.576369,1799.3,1799.0,1.0]
[1680532996348,0.576369,1799.3,1799.0,3.221]
[1680532996757,4.06841379,1799.4,1799.0,3.221]
[1680532996758,4.64478279,1799.4,1799.0,3.221]
[1680532997346,3.784169,1799.4,1799.2,2.224]
[1680532998750,3.784169,1799.4,1799.3,1.0]
[1680532999054,0.576369,1799.5,1799.3,1.0]
[1680532999349,0.576369,1799.5,1799.2,2.224]
[1680532999853,0.576369,1799.5,1799.3,1.0]
[1680533000047,3.784169,1799.6,1799.3,1.0]
[1680533000853,3.2078,1799.6,1799.3,1.0]
[1680533001246,3.2078,1799.6,1799.4,2.22]
[1680533001753,2.224,1799.5,1798.8,4.36154788]
[1680533001950,3.2078,1799.2,1798.8,2.7793659]
[1680533002152,3.2078,1799.2,1798.8,0.5663659]
[1680533002459,3.2078,1799.2,1798.9,2.224]
[1680533003057,3.2078,1799.0,1798.7,7.29356288]
[1680533003244,2.224,1799.3,1798.7,0.35406288]
[1680533003245,3.2078,1798.8,1798.7,0.35406288]
[1680533003653,3.2078,1798.8,1798.5,2.224]
[1680533006254,3.2078,1798.8,1798.6,1.0]
[1680533007562,3.2078,1799.0,1798.7,2.224]
[1680533007760,3.2078,1799.0,1798.8,1.0]
[1680533008257,3.2078,1799.0,1798.7,2.224]
[1680533008654,3.2078,1799.0,1798.8,0.4585011]
[1680533008965,3.2078,1799.0,1798.8,1.4585011]
[1680533009761,3.2078,1799.0,1798.8,0.4585011]
[1680533010352,3.2078,1799.0,1798.8,1.4585011]
[1680533010758,3.2078,1799.0,1798.9,2.203]
[1680533010964,3.2078,1799.1,1798.9,2.203]
[1680533011163,3.2078,1799.3,1799.0,3.221]
[1680533011352,3.2078,1799.3,1799.1,2.22]
[1680533012150,3.2078,1799.3,1799.1,5.533]
[1680533012472,3.784169,1799.5,1799.2,1.0]
[1680533012763,3.2078,1799.3,1799.0,3.213]
[1680533012953,0.576369,1799.5,1799.0,1.0]
[1680533013150,3.2078,1799.5,1799.4,2.224]
[1680533013855,3.2078,1799.5,1799.4,3.224]
[1680533014273,3.2078,1799.7,1799.4,3.224]
[1680533014452,3.2078,1799.7,1799.6,2.224]
[1680533014762,3.2078,1799.7,1799.6,2.221]
[1680533017455,2.5876785,1799.7,1799.6,2.221]
[1680533018353,3.2078,1799.9,1799.6,2.221]
[1680533019159,3.2078,1799.9,1799.7,1.0]
[1680533019668,3.2078,1799.9,1799.6,2.221]
[1680533019961,3.2078,1799.7,1799.6,2.221]
[1680533020656,3.2078,1799.9,1799.6,2.221]
[1680533022262,3.2078,1799.9,1799.7,2.224]
[1680533022466,3.2078,1799.9,1799.8,1.0]
[1680533022669,3.2078,1799.9,1799.7,2.224]
[1680533023664,3.2078,1799.9,1799.8,1.00706506]
[1680533028870,3.2078,1799.9,1799.8,2.00706506]
[1680533029261,3.784169,1800.1,1799.8,2.00706506]
[1680533029471,3.784169,1800.1,1799.8,1.00706506]
[1680533029872,3.2078,1800.1,1799.8,1.00706506]
[1680533030766,3.2078,1800.1,1799.8,2.00706506]
[1680533030971,3.2078,1800.1,1799.8,1.00706506]
[1680533031471,3.2078,1799.9,1799.8,1.00706506]
[1680533031669,3.2078,1800.1,1799.8,1.00706506]
[1680533032307,3.2078,1800.1,1799.8,2.10706506]
[1680533032774,3.784169,1800.1,1799.8,2.10706506]
[1680533032974,3.2078,1800.1,1799.8,2.10706506]
[1680533033176,3.784169,1800.1,1799.8,2.10706506]
[1680533034176,3.2078,1799.9,1799.8,2.10706506]
[1680533034431,3.2078,1799.9,1799.2,13.725]
[1680533034674,3.2078,1799.5,1799.3,1.111]
[1680533036074,4.3188,1799.5,1799.0,1.68022099]
[1680533036274,3.2078,1799.3,1799.1,1.0]
[1680533036572,3.2078,1799.3,1799.0,1.68022099]
[1680533037583,3.2078,1799.3,1799.1,1.0]
[1680533039481,4.3188,1799.5,1799.1,1.0]
[1680533039989,3.2078,1799.5,1799.2,1.111]
[1680533040176,3.2078,1799.5,1799.3,1.0]
[1680533040583,3.2078,1799.5,1799.2,1.111]
[1680533041282,3.784169,1799.8,1799.4,1.109]
[1680533041482,0.576369,1799.8,1799.6,1.111]
[1680533041689,3.2078,1799.7,1799.6,1.111]
[1680533042179,3.2078,1799.7,1799.6,0.57640942]
[1680533049691,3.784169,1799.9,1799.6,2.79840942]
[1680533049889,3.784169,1799.9,1799.8,1.1]
[1680533050088,3.784169,1799.9,1799.7,1.104]
[1680533050887,4.64478279,1799.9,1799.7,1.104]
[1680533051097,0.576369,1799.8,1799.7,1.104]
[1680533051500,1.0,1799.8,1799.7,1.104]
[1680533051693,1.576369,1799.8,1799.7,1.104]
[1680533051900,0.576369,1799.8,1799.7,1.104]
[1680533052103,0.576369,1799.8,1799.6,1.68040942]
[1680533053002,3.2078,1799.7,1799.6,1.68040942]
[1680533053197,0.576369,1799.8,1799.6,1.68040942]
[1680533053710,0.576369,1799.9,1799.7,2.109]
[1680533053911,0.576369,1800.3,1799.8,4.3188]
[1680533054101,0.576369,1800.4,1800.2,1.109]
[1680533054401,0.576369,1800.4,1800.3,2.1]
[1680533054611,0.576369,1800.4,1800.3,1.1]
[1680533054809,1.43698279,1800.4,1800.3,1.1]
[1680533055112,0.576369,1800.4,1800.3,2.211]
[1680533055510,0.576369,1800.4,1800.3,3.211]
[1680533056408,1.43698279,1800.5,1800.3,3.211]
[1680533056706,0.576369,1800.5,1800.4,2.111]
[1680533056908,0.86061379,1800.5,1800.4,2.111]
[1680533057505,1.43701249,1800.5,1800.4,2.111]
[1680533057801,0.5763987,1800.5,1800.4,2.111]
[1680533058211,0.5763987,1800.5,1800.4,1.0]
[1680533059010,1.14744439,1800.7,1800.5,5.533]
[1680533059304,0.15,1801.0,1800.6,11.52798198]
[1680533059506,0.15,1801.0,1800.9,1.111]
[1680533059709,0.15,1801.0,1800.9,2.111]
[1680533060212,4.2078,1801.6,1801.0,1.0]
[1680533060525,3.2078,1801.6,1801.2,1.104]
[1680533060705,3.2078,1801.6,1801.4,1.104]
[1680533061120,3.2078,1801.6,1801.5,1.111]
[1680533061318,4.35524439,1801.8,1801.5,1.111]
[1680533061503,3.2078,1801.8,1801.7,1.1]
[1680533061711,3.2078,1801.8,1801.6,1.111]
[1680533061712,4.35524439,1801.8,1801.6,1.111]
[1680533062009,3.2078,1801.8,1801.7,1.109]
[1680533062530,0.1,1802.0,1801.8,1.105]
[1680533062710,0.1,1802.0,1801.9,1.111]
[1680533063211,4.35524439,1802.4,1801.9,6.4228]
[1680533063414,4.35524439,1802.4,1802.3,1.111]
[1680533063617,3.2078,1802.4,1802.3,1.111]
[1680533064411,3.2078,1802.4,1802.3,2.222]
[1680533064607,3.2078,1802.4,1802.3,1.111]
[1680533064819,3.2078,1802.4,1801.9,1.109]
[1680533065115,1.111,1802.5,1801.9,1.109]
[1680533065116,3.2078,1802.1,1801.9,1.109]
[1680533065418,3.2078,1802.1,1802.0,1.111]
[1680533066114,3.2078,1802.5,1802.0,2.222]
[1680533066316,3.2078,1802.3,1802.1,1.105]
[1680533066515,3.2078,1802.3,1802.2,1.111]
[1680533066814,3.2078,1802.3,1802.1,1.105]
[1680533067214,3.2078,1802.3,1802.1,2.217]
[1680533067420,1.0,1802.2,1802.1,2.217]
[1680533067622,1.0,1802.2,1801.7,1.0]
[1680533067623,2.217,1802.1,1801.7,2.219]
[1680533067918,3.2078,1801.8,1801.7,2.219]
[1680533068606,3.2078,1801.8,1801.7,3.65127122]
[1680533068811,3.2078,1801.8,1801.7,1.43227122]
[1680533069011,3.2078,1801.8,1801.5,2.219]
[1680533069211,3.2078,1801.6,1801.5,2.219]
[1680533071310,3.2078,1801.8,1801.5,2.219]
[1680533071518,1.0,1801.7,1801.5,2.219]
[1680533071919,3.2078,1801.8,1801.5,2.219]
[1680533072121,3.2078,1801.8,1801.6,2.219]
[1680533072322,1.0,1801.7,1801.6,2.219]
[1680533072524,1.0,1801.7,1801.2,7.3106]
[1680533072823,3.2078,1801.5,1801.2,7.3106]
[1680533073059,3.2078,1801.5,1801.2,2.205]
[1680533073217,3.2078,1801.5,1801.4,2.217]
[1680533073423,3.2078,1801.7,1801.4,2.217]
[1680533074823,3.2078,1801.5,1801.1,2.205]
[1680533075027,3.2078,1801.3,1801.1,2.205]
[1680533075918,3.2078,1801.6,1801.1,2.205]
[1680533076114,3.2078,1801.6,1801.3,2.219]
[1680533076319,3.2078,1801.4,1801.3,2.219]
[1680533076722,3.2078,1801.4,1801.1,2.219]
[1680533077026,3.2078,1801.4,1801.0,1.0]
[1680533077027,3.2078,1801.6,1801.3,2.217]
[1680533077327,3.2078,1801.4,1801.3,2.217]
[1680533077722,3.2078,1801.4,1801.0,1.0]
[1680533077921,3.2078,1801.2,1801.1,2.219]
[1680533078319,3.2078,1801.3,1801.1,2.219]
[1680533078520,3.2078,1801.5,1801.2,2.219]
[1680533078824,3.2078,1801.6,1801.4,2.219]
[1680533079025,3.2078,1801.6,1801.5,2.219]
[1680533080364,3.2078,1801.6,1801.1,2.219]
[1680533080622,3.2078,1801.2,1801.1,2.219]
[1680533082020,3.2078,1801.2,1801.0,2.21]
[1680533082463,3.2078,1801.2,1800.8,1.0]
[1680533082727,3.2078,1801.2,1801.0,2.21]
[1680533083629,3.2078,1801.2,1801.1,0.62108734]
[1680533084224,3.2078,1801.2,1801.1,8.734e-05]
[1680533084424,5.4248,1801.2,1800.5,2.205]
[1680533084623,3.2078,1800.8,1800.5,2.205]
[1680533084832,3.2078,1800.6,1800.5,2.205]
[1680533085029,3.2078,1800.6,1800.3,2.219]
[1680533085634,3.2078,1800.4,1800.3,2.219]
[1680533086028,3.2078,1800.4,1800.3,2.217]
[1680533086529,3.43881749,1800.4,1800.3,2.217]
[1680533087238,3.43881749,1800.4,1800.1,2.219]
[1680533088125,3.43881749,1800.4,1800.2,1.0]
[1680533088432,3.43881749,1800.4,1800.0,3.219]
[1680533088633,3.43881749,1800.4,1800.0,2.219]
[1680533088828,3.43881749,1800.4,1800.1,1.0]
[1680533089129,0.23101749,1800.4,1800.0,3.219]
[1680533089327,3.2078,1800.4,1799.9,3.2078]
[1680533089760,3.2078,1800.4,1800.0,1.0]
[1680533090033,3.2078,1800.2,1800.0,1.0]
[1680533090231,3.2078,1800.2,1799.9,1.0]
[1680533090436,3.2078,1800.4,1799.9,1.0]
[1680533090931,5.4268,1800.6,1800.0,2.219]
[1680533091131,3.2078,1800.6,1800.2,2.217]
[1680533091328,3.2078,1800.4,1800.2,2.217]
[1680533091936,0.26185009,1800.3,1800.2,2.217]
[1680533092235,0.26185009,1800.3,1800.1,3.21]
[1680533092434,3.2078,1800.4,1800.1,3.21]
[1680533092634,3.2078,1800.6,1800.3,2.219]
[1680533092831,3.2078,1800.8,1800.4,2.219]
[1680533093043,3.2078,1800.8,1800.5,1.0]
[1680533093731,3.2078,1800.8,1800.6,2.219]
[1680533094128,3.2078,1801.0,1800.7,1.0]
[1680533094631,3.2078,1801.0,1800.6,2.219]
[1680533095334,3.77153909,1801.0,1800.6,2.219]
[1680533095533,3.2078,1801.0,1800.7,1.0]
[1680533096235,3.2078,1801.0,1800.6,2.219]
[1680533098042,3.2078,1801.0,1800.7,1.0]
[1680533098631,0.04622118,1800.9,1800.8,2.219]
[1680533098931,0.04622118,1800.9,1800.8,2.217]
[1680533099145,3.2078,1801.0,1800.8,2.38766325]
[1680533099335,3.2078,1801.0,1800.9,2.21]
[1680533099835,3.2078,1801.2,1800.9,2.21]
[1680533100032,3.2078,1801.2,1801.0,2.219]
[1680533100243,3.2078,1801.2,1800.8,0.17066325]
[1680533100244,3.2078,1801.2,1801.1,3.205]
[1680533100548,3.2078,1801.4,1801.1,3.205]
[1680533100738,3.2078,1801.4,1801.2,2.219]
[1680533100935,3.2078,1801.4,1801.3,1.0]
[1680533101135,3.2078,1801.4,1801.2,2.219]
[1680533101644,3.2078,1801.4,1801.0,2.21]
[1680533101940,3.2078,1801.4,1801.1,1.0]
[1680533103842,2.75704165,1801.6,1800.8,0.17066325]
[1680533103843,5.4248,1801.2,1800.8,0.17066325]
[1680533104043,5.4138,1801.0,1800.8,0.17066325]
[1680533104535,1.0,1800.9,1800.8,0.17066325]
[1680533105039,5.4138,1801.0,1800.8,0.17066325]
[1680533106237,5.4138,1801.0,1800.5,1.0]
[1680533106436,3.2078,1800.7,1800.5,1.0]
[1680533106639,3.2078,1801.1,1800.6,2.21]
[1680533106842,3.2078,1801.1,1800.8,2.219]
[1680533107146,3.2078,1800.9,1800.6,2.219]
[1680533107478,3.2078,1800.9,1800.7,1.0]
[1680533108736,3.2078,1800.9,1800.6,2.219]
[1680533109040,3.2078,1800.7,1800.4,3.219]
[1680533109234,3.2078,1800.7,1800.4,2.219]
[1680533109642,3.2078,1800.7,1800.5,1.0]
[1680533111138,3.2078,1800.7,1800.4,3.219]
[1680533111542,3.2078,1800.7,1800.5,1.0]
[1680533111743,3.2078,1800.7,1800.4,3.219]
[1680533111940,3.2078,1800.7,1800.6,0.08882924]
[1680533112141,3.2078,1800.7,1800.3,2.219]
[1680533112339,3.2078,1800.5,1800.3,2.219]
[1680533115653,3.2078,1800.9,1800.4,2.217]
[1680533115839,3.2078,1800.9,1800.6,2.217]
[1680533116146,3.2078,1800.9,1800.7,1.0]
[1680533116349,3.2078,1800.9,1800.6,2.217]
[1680533116848,3.2078,1801.2,1800.8,2.205]
[1680533117048,2.8046765,1801.3,1800.8,2.205]
[1680533117049,3.2078,1801.0,1800.9,1.0]
[1680533117440,3.2078,1801.0,1800.8,2.205]
[1680533117641,3.2078,1801.0,1800.7,0.09167905]
[1680533118043,3.2078,1801.0,1800.5,3.79918198]
[1680533118242,3.2078,1800.8,1800.5,3.79918198]
[1680533118450,3.2078,1801.0,1800.5,4.67236381]
[1680533118742,2.198,1800.7,1800.3,0.58218198]
[1680533118949,3.2078,1800.4,1800.2,0.58218198]
[1680533123248,5.4268,1800.4,1800.0,0.58218198]
[1680533123446,3.2078,1800.1,1800.0,0.58218198]
[1680533124641,3.2078,1800.1,1799.9,1.45536381]
[1680533124844,3.2078,1800.1,1799.9,0.58218198]
[1680533125452,2.219,1800.0,1799.9,0.58218198]
[1680533126049,2.219,1800.0,1799.9,1.45536381]
[1680533126650,2.219,1800.0,1799.9,0.58218198]
[1680533126949,0.58720459,1800.0,1799.9,0.58218198]
[1680533127153,0.58720459,1800.0,1799.9,0.87318183]
[1680533127457,1.58720459,1800.0,1799.9,1.4539051]
[1680533127750,0.58720459,1800.0,1799.9,1.4539051]
[1680533128458,1.58720459,1800.0,1799.9,1.4539051]
[1680533128652,1.58720459,1800.0,1799.9,0.58072327]
[1680533128845,3.78920459,1800.0,1799.9,0.58072327]
[1680533129047,3.78920459,1800.0,1799.8,0.58072327]
[1680533129252,5.4268,1799.9,1799.8,0.58072327]
[1680533129452,5.4268,1799.9,1799.7,0.58072327]
[1680533129848,3.2078,1799.9,1799.7,0.58072327]
[1680533130752,3.21,1799.8,1799.6,0.58072327]
[1680533130958,3.2078,1799.7,1799.6,0.58072327]
[1680533132161,3.2078,1799.8,1799.6,1.4539051]
[1680533132354,3.2078,1799.8,1799.7,0.58072327]
[1680533132750,3.2078,1799.8,1799.5,4.24730851]
[1680533132751,3.2078,1799.8,1799.6,0.58072327]
[1680533132951,3.2078,1799.8,1799.6,1.4539051]
[1680533133455,3.2078,1799.8,1799.6,0.58072327]
[1680533134764,3.2078,1799.8,1799.5,3.6729051]
[1680533134965,3.2078,1799.6,1799.5,3.6729051]
[1680533135265,3.2078,1799.6,1799.5,3.09218183]
[1680533135460,3.2078,1799.6,1799.5,3.67227667]
[1680533135761,3.2078,1799.6,1799.5,2.79908945]
[1680533136460,3.79500459,1800.0,1799.5,2.79908945]
[1680533136659,3.79500459,1800.0,1799.9,2.217]
[1680533136860,0.58720459,1800.0,1799.9,2.217]
[1680533137162,3.2078,1800.2,1799.9,2.217]
[1680533137866,3.2078,1800.0,1799.9,2.217]
[1680533138070,3.2078,1800.0,1799.8,2.21]
[1680533138261,3.2078,1800.0,1799.6,6.87927128]
[1680533138458,3.2078,1799.7,1799.6,6.00608945]
[1680533138664,3.2078,1799.7,1799.6,5.426]
[1680533138865,3.2078,1799.7,1799.6,3.219]
[1680533139169,3.70538215,1799.7,1799.6,2.219]
[1680533139467,3.2078,1799.7,1799.6,2.219]
[1680533139668,3.79833707,1799.7,1799.6,2.219]
[1680533141463,0.59053707,1799.7,1799.6,2.219]
[1680533141967,0.59053707,1799.7,1799.4,2.79908945]
[1680533142167,3.2078,1799.6,1799.4,3.67227128]
[1680533142363,3.2078,1799.6,1799.4,2.79908945]
[1680533142900,3.2078,1799.6,1799.5,1.45327128]
[1680533143061,3.2078,1799.6,1799.4,2.79908945]
[1680533143456,1.0,1799.9,1799.4,2.79908945]
[1680533143457,3.2078,1799.8,1799.5,2.79708945]
[1680533143662,4.2078,1800.1,1799.7,2.217]
[1680533143865,0.59054824,1800.0,1799.7,2.217]
[1680533144064,0.59054824,1800.0,1799.9,2.205]
[1680533145061,3.2078,1800.3,1799.9,2.205]
[1680533145966,3.2078,1800.1,1799.9,2.205]
[1680533147566,3.2078,1800.1,1799.8,2.217]
[1680533147872,3.2078,1799.9,1799.6,2.79908945]
[1680533149070,3.2078,1799.9,1799.7,0.58008945]
[1680533149371,3.2078,1799.9,1799.7,1.58008945]
[1680533149570,5.4268,1800.1,1799.7,1.58008945]
[1680533149766,5.4268,1800.1,1799.7,0.58008945]
[1680533149967,5.4268,1800.1,1799.7,1.58008945]
[1680533150268,5.4268,1800.1,1799.7,1.45327128]
[1680533150570,3.2078,1800.1,1799.8,2.217]
[1680533150966,3.2078,1800.1,1799.8,2.79708945]
[1680533151305,3.2078,1799.9,1799.8,2.217]
[1680533152563,3.2078,1799.9,1799.7,0.58008945]
[1680533153566,3.2078,1799.9,1799.6,2.79908945]
[1680533153772,3.2078,1799.7,1799.6,2.219]
[1680533154075,3.2078,1799.7,1799.6,2.79908945]
[1680533155769,5.90545045,1799.7,1799.4,0.58008945]
[1680533156071,5.90545045,1799.7,1799.3,1.45327128]
[1680533156072,3.2078,1799.5,1799.3,1.45327128]
[1680533156575,3.2078,1799.5,1799.4,0.58008945]
[1680533156967,3.92293238,1799.5,1799.4,0.58008945]
[1680533157465,1.0,1799.4,1799.3,0.58008945]
[1680533157666,1.0,1799.4,1799.3,1.45327128]
[1680533157874,3.92293238,1799.5,1799.3,0.58008945]
[1680533158471,3.92293238,1799.5,1799.2,0.58008945]
[1680533158672,3.92293238,1799.5,1799.3,0.58008945]
[1680533158868,3.92293238,1799.5,1799.2,1.45327128]
[1680533159069,3.92293238,1799.5,1799.3,0.58008945]
[1680533159582,3.92293238,1799.5,1799.3,2.79008945]
[1680533160273,0.71513238,1799.5,1799.3,2.79008945]
[1680533160476,3.2078,1799.7,1799.3,2.79008945]
[1680533160774,3.2078,1799.5,1799.3,2.79008945]
[1680533161368,3.2078,1799.5,1799.3,3.79008945]
[1680533162172,3.2078,1799.7,1799.4,2.219]
[1680533162666,3.2078,1799.7,1799.4,2.79908945]
[1680533163268,3.2078,1799.5,1799.4,2.79908945]
[1680533163670,3.2078,1799.7,1799.4,2.79908945]
[1680533165579,3.2078,1799.5,1799.4,2.79908945]
[1680533165877,3.2078,1799.7,1799.4,2.79908945]
[1680533166685,3.2078,1799.5,1799.4,2.79908945]
[1680533167182,3.2078,1799.5,1799.4,1.69108945]
[1680533168666,3.2078,1799.5,1799.4,0.58008945]
[1680533171984,3.92297498,1799.5,1799.4,0.58008945]
[1680533173679,0.71517498,1799.5,1799.4,1.98418183]
[1680533173871,3.2078,1799.9,1799.4,1.98418183]
[1680533174075,3.2078,1799.9,1799.5,1.69232199]
[1680533174281,3.2078,1799.7,1799.6,1.58132199]
[1680533174478,3.2078,1799.7,1799.6,0.58132199]
[1680533174687,3.2078,1799.9,1799.6,0.58132199]
[1680533175284,3.2078,1799.7,1799.6,0.58132199]
[1680533175680,1.66581249,1800.0,1799.6,0.58132199]
[1680533175681,3.2078,1799.9,1799.6,0.58132199]
[1680533176084,3.2078,1799.7,1799.5,1.111]
[1680533176290,3.2078,1799.7,1799.6,0.58132199]